bitfinex-derivatives/quotes_ETHF0:USTF0_20250810
["timestamp","ask_amount","ask_price","bid_price","bid_amount"]
[1754849156535,0.2582,4228.7,4228.6,22.48234]
[1754849157737,0.519,4228.7,4228.6,22.48234]
[1754849157938,0.6935,4228.7,4228.6,22.48234]
[1754849158333,0.4327,4228.7,4228.6,22.48234]
[1754849158541,0.2582,4228.7,4228.6,22.48234]
[1754849160838,0.4728,4229.9,4228.6,22.48234]
[1754849161037,1.2934,4229.6,4229.5,0.1816]
[1754849161240,0.75170917,4230.3,4229.9,0.47278]
[1754849161241,0.8447,4230.0,4229.9,0.47278]
[1754849161443,1.5516,4230.0,4229.9,0.1816]
[1754849161645,1.5516,4230.0,4229.8,0.4728]
[1754849161646,0.6114,4230.0,4229.8,0.4728]
[1754849161834,1.5516,4229.9,4229.8,0.4728]
[1754849162041,1.5516,4229.9,4229.8,0.9292]
[1754849164349,1.279,4229.9,4229.8,0.9292]
[1754849164550,1.5516,4229.9,4229.8,0.9292]
[1754849165041,1.5516,4229.9,4229.8,0.6544]
[1754849165747,1.5341,4229.9,4229.8,22.4742]
[1754849166543,1.279,4229.9,4229.8,0.9192]
[1754849166742,1.1029,4229.9,4229.8,22.4722]
[1754849167551,1.541,4229.9,4229.8,0.4728]
[1754849167843,1.553,4228.8,4228.7,2.75512341]
[1754849168049,1.553,4228.8,4228.7,22.48403]
[1754849168852,1.553,4228.8,4228.7,0.90703]
[1754849169047,1.553,4228.8,4228.7,22.48103]
[1754849170240,1.553,4228.8,4228.7,0.47293]
[1754849170453,0.60190949,4229.8,4228.3,2.37769341]
[1754849170454,0.6205,4228.4,4228.3,0.47297]
[1754849170648,1.1149,4228.4,4228.3,22.48107]
[1754849170846,1.2979,4228.4,4228.3,0.90707]
[1754849171043,1.553,4228.4,4228.3,0.64227]
[1754849171356,1.553,4228.4,4228.3,0.47297]
[1754849171551,1.553,4228.4,4227.5,2.11289341]
[1754849171552,0.8973,4227.5,4227.4,2.28219341]
[1754849171855,1.553,4227.5,4227.4,0.90718]
[1754849172055,1.553,4227.5,4227.4,22.48418]
[1754849172453,1.553,4227.5,4227.4,0.47308]
[1754849176763,0.6205,4227.5,4227.3,0.47308]
[1754849176957,1.553,4227.4,4227.3,0.47308]
[1754849181167,1.553,4227.4,4227.3,0.64238]
[1754849182070,1.553,4227.4,4227.3,0.90718]
[1754849183371,0.7143,4227.4,4227.3,0.90718]
[1754849183575,1.553,4227.4,4227.3,0.90718]
[1754849184970,0.2768,4227.4,4227.3,0.90718]
[1754849185264,1.553,4228.1,4228.0,0.47301]
[1754849186572,1.553,4228.1,4228.0,0.64231]
[1754849186767,1.553,4228.1,4228.0,0.90711]
[1754849188270,1.553,4228.1,4228.0,0.64231]
[1754849188670,1.553,4228.1,4228.0,0.90711]
[1754849190875,1.553,4228.1,4228.0,0.47301]
[1754849195775,1.553,4228.1,4228.0,0.91661]
[1754849196970,0.7143,4228.1,4228.0,0.91661]
[1754849197174,0.2768,4228.1,4228.0,0.91661]
[1754849197374,1.5775,4228.1,4228.0,0.91661]
[1754849199875,0.47302,4228.0,4227.7,0.47304]
[1754849200070,0.75225444,4228.4,4227.2,0.9208]
[1754849200071,0.6308,4227.3,4227.2,0.9208]
[1754849200264,1.3007,4227.3,4227.2,0.9208]
[1754849200575,1.5669,4227.3,4227.2,0.9208]
[1754849201770,0.6588,4228.0,4227.9,0.47302]
[1754849201975,1.5669,4228.0,4227.9,0.92072]
[1754849202276,0.6308,4227.3,4227.2,0.9208]
[1754849202476,1.5669,4227.3,4227.2,0.9208]
[1754849202867,1.5669,4227.3,4227.2,0.4731]
[1754849203264,1.5669,4227.3,4227.2,0.6465]
[1754849203469,1.5669,4227.3,4227.2,0.9208]
[1754849207676,0.2662,4227.8,4227.4,1.18269]
[1754849207870,0.2662,4227.8,4227.7,0.92074]
[1754849207871,1.5669,4227.8,4227.7,0.92074]
[1754849208573,1.5669,4227.8,4227.7,0.64644]
[1754849208773,1.5669,4227.8,4227.7,0.92074]
[1754849209977,0.7117,4227.8,4227.7,0.92074]
[1754849211080,0.2662,4227.8,4227.7,0.92074]
[1754849212672,1.3007,4228.2,4228.1,0.6464]
[1754849212981,1.93449444,4229.1,4227.4,1.18269]
[1754849212982,1.3007,4228.1,4228.0,0.473]
[1754849213182,1.5669,4228.1,4228.0,0.473]
[1754849215176,1.5669,4228.1,4228.0,0.9207]
[1754849222787,0.2662,4228.1,4228.0,0.9207]
[1754849223388,0.8381,4228.6,4228.5,0.92065]
[1754849223684,0.1812,4228.6,4228.5,0.92065]
[1754849224086,1.1043,4228.6,4228.5,0.92065]
[1754849225185,0.7117,4228.6,4228.5,0.92065]
[1754849225381,0.2662,4228.6,4228.5,0.92065]
[1754849227092,0.2627,4229.1,4228.5,0.92065]
[1754849227093,0.2768,4229.1,4229.0,0.93279]
[1754849227387,1.2855,4230.0,4229.9,0.47279]
[1754849227883,1.5623,4230.0,4229.9,0.47279]
[1754849228084,1.5623,4230.0,4229.9,0.93269]
[1754849228879,1.5623,4230.0,4229.9,0.65759]
[1754849229488,1.5623,4230.0,4229.9,0.47279]
[1754849231092,2.03508,4230.0,4229.9,0.47279]
[1754849231287,0.9505,4229.9,4229.8,0.4728]
[1754849231487,1.5623,4228.9,4228.8,0.93282]
[1754849231693,0.7137,4228.9,4228.8,0.93282]
[1754849232687,1.2996,4228.9,4228.8,0.93282]
[1754849232887,1.5623,4228.9,4228.8,0.93282]
[1754849233381,1.2996,4228.9,4228.8,0.93282]
[1754849233598,1.5623,4229.7,4229.6,0.47282]
[1754849233988,1.5623,4229.7,4229.4,0.2751]
[1754849234284,1.5623,4229.5,4229.4,0.2751]
[1754849234481,0.9505,4229.4,4229.2,0.2751]
[1754849234682,0.6118,4228.8,4228.7,0.93282]
[1754849234882,1.2996,4228.3,4228.2,0.93288]
[1754849235087,1.5623,4228.3,4228.2,0.65778]
[1754849235688,1.5623,4228.3,4228.2,0.93288]
[1754849236587,1.2996,4228.3,4228.2,0.93288]
[1754849236791,0.2768,4228.3,4228.2,0.93288]
[1754849237297,0.4468,4228.3,4228.2,0.93288]
[1754849237497,1.1247,4228.3,4228.2,0.93288]
[1754849238298,1.2996,4228.3,4228.2,0.93288]
[1754849238496,1.5623,4228.3,4228.2,0.93288]
[1754849247800,1.5623,4228.3,4228.2,0.47298]
[1754849248002,1.5623,4228.3,4228.2,0.93288]
[1754849248702,1.1513,4228.3,4228.2,0.93288]
[1754849248908,1.2996,4228.3,4228.2,0.93288]
[1754849249112,1.5623,4228.3,4228.2,0.93288]
[1754849250708,1.5623,4228.3,4228.2,0.74808]
[1754849250917,1.5623,4228.3,4228.2,0.47298]
[1754849256618,1.5623,4228.3,4228.2,0.91948]
[1754849261123,1.56592307,4228.3,4228.2,0.91948]
[1754849269124,1.56592307,4228.3,4227.7,2.11289341]
[1754849269125,0.6181,4227.8,4227.7,2.11289341]
[1754849269325,1.5556,4227.7,4227.6,0.47304]
[1754849269627,1.5556,4227.7,4227.6,1.30864]
[1754849269827,1.5556,4227.7,4227.6,0.8356]
[1754849274432,1.5556,4227.7,4227.6,1.1012]
[1754849274628,0.00362307,4228.3,4227.6,1.93486444]
[1754849274629,0.2607,4228.2,4227.6,1.93486444]
[1754849274929,0.43692307,4228.3,4228.2,1.65698]
[1754849275232,1.55922307,4228.3,4228.2,1.65698]
[1754849279433,1.55922307,4228.3,4228.2,1.70868]
[1754849279434,0.26432307,4228.3,4228.2,1.70868]
[1754849279636,0.69902307,4228.3,4228.2,1.65698]
[1754849279935,1.11612307,4228.3,4228.2,1.65698]
[1754849280136,1.37582307,4228.3,4228.2,1.65698]
[1754849280634,0.00362307,4228.3,4228.2,1.70868]
[1754849280840,0.2607,4229.0,4228.9,1.6569]
[1754849281233,0.2607,4229.0,4228.9,2.46085444]
[1754849281434,0.4171,4229.4,4229.3,1.00206]
[1754849281634,0.1726,4229.4,4229.3,1.65686]
[1754849281936,0.4333,4229.4,4229.3,1.65686]
[1754849282434,1.5556,4230.0,4229.9,1.65678]
[1754849282633,1.1385,4230.0,4229.9,1.65678]
[1754849282832,0.8788,4230.0,4229.9,1.65678]
[1754849283029,1.5556,4230.0,4229.9,1.65678]
[1754849287341,0.2607,4230.0,4229.9,1.65678]
[1754849287536,1.2812,4230.6,4230.5,0.99272]
[1754849287841,1.2812,4230.6,4230.5,1.68422]
[1754849288040,1.5339,4230.6,4230.5,1.68422]
[1754849288245,1.5339,4230.6,4230.4,0.47273]
[1754849288431,0.6518,4231.3,4230.5,0.4122]
[1754849288638,0.6053,4230.8,4230.7,0.47269]
[1754849288941,1.5339,4230.8,4230.7,0.47269]
[1754849290939,1.5339,4230.8,4228.8,0.0517]
[1754849291137,1.5339,4229.9,4229.8,1.2947]
[1754849291841,1.5339,4229.9,4229.8,1.7675]
[1754849292043,1.5339,4229.9,4229.8,0.4728]
[1754849294044,0.5295,4229.8,4229.5,0.6915]
[1754849294249,1.5339,4229.6,4229.5,1.1288]
[1754849296147,1.5339,4229.6,4229.4,0.47284]
[1754849296348,1.5339,4229.5,4229.4,1.60164]
[1754849298344,1.5339,4229.5,4229.4,1.76754]
[1754849305649,0.6053,4229.3,4229.1,0.4122]
[1754849305853,2.00685,4228.5,4228.4,1.1288]
[1754849306048,0.6053,4228.0,4227.9,1.07621]
[1754849306253,1.5339,4228.0,4227.9,1.07621]
[1754849306654,1.5339,4228.0,4227.9,1.2947]
[1754849306850,0.6053,4227.3,4227.2,0.6032]
[1754849307153,1.1348,4227.3,4227.2,1.76779]
[1754849307954,1.5339,4227.3,4227.2,1.76779]
[1754849308150,0.5992,4227.3,4227.2,1.76779]
[1754849308352,0.2527,4227.3,4227.2,1.87149]
[1754849308750,1.5339,4227.9,4227.8,0.6032]
[1754849308956,1.5339,4227.9,4227.8,1.2947]
[1754849310552,0.2527,4227.9,4227.8,1.2947]
[1754849310758,0.2527,4227.9,4227.8,1.3984]
[1754849311555,0.429,4227.9,4227.8,1.3984]
[1754849311859,1.5339,4227.9,4227.8,1.2947]
[1754849312860,1.5339,4227.9,4227.8,1.76773]
[1754849314854,0.429,4227.9,4227.8,1.87143]
[1754849315255,0.60009421,4229.5,4227.8,1.87143]
[1754849315256,0.6053,4228.7,4228.6,1.07613]
[1754849315460,1.5339,4228.7,4228.6,1.76763]
[1754849316963,1.5339,4228.7,4228.5,0.47294]
[1754849317257,1.5251,4227.9,4227.8,1.74993]
[1754849318958,0.8758,4227.9,4227.8,1.74993]
[1754849320465,0.4325,4227.9,4227.8,1.85373]
[1754849320657,1.5251,4228.6,4228.5,1.74985]
[1754849321861,1.5251,4228.6,4228.5,1.1107]
[1754849322360,0.9123,4228.5,4228.4,0.47295]
[1754849322553,1.1405,4228.4,4228.3,0.47296]
[1754849322757,1.5251,4228.4,4228.3,0.47296]
[1754849322953,1.5251,4228.4,4228.3,1.58366]
[1754849323559,1.5251,4228.4,4228.3,1.74986]
[1754849324462,1.5251,4228.4,4228.3,0.47296]
[1754849325563,0.6128,4228.4,4228.2,0.47298]
[1754849325764,1.5251,4228.3,4228.2,0.47298]
[1754849327167,1.5251,4228.3,4228.2,1.58368]
[1754849327466,1.5251,4228.3,4228.2,0.47298]
[1754849327862,1.5251,4228.3,4228.2,1.58368]
[1754849329566,0.8758,4228.3,4228.2,1.58368]
[1754849329768,1.5251,4228.3,4228.2,1.74988]
[1754849330367,0.4325,4228.3,4228.2,1.74988]
[1754849330563,0.263,4228.3,4228.2,1.74988]
[1754849330767,0.263,4228.3,4228.2,1.85368]
[1754849330965,0.4325,4228.3,4228.2,1.85368]
[1754849331171,0.4325,4228.3,4228.2,1.74988]
[1754849333260,1.0818,4228.3,4228.2,1.74988]
[1754849334069,0.6972,4228.3,4228.2,1.74988]
[1754849334569,1.5251,4228.3,4228.2,1.74988]
[1754849335872,0.8758,4228.3,4228.2,1.74988]
[1754849336467,1.5251,4228.3,4228.2,1.74988]
[1754849339664,0.263,4228.3,4228.2,1.74988]
[1754849339876,0.8775,4228.9,4228.8,1.07301]
[1754849340176,1.2621,4228.9,4228.8,1.74981]
[1754849340375,1.5251,4228.9,4228.8,1.74981]
[1754849340674,1.5251,4228.9,4228.8,0.90681]
[1754849341070,1.5251,4228.9,4228.8,1.58361]
[1754849342575,1.5251,4228.9,4228.8,1.13861]
[1754849342982,1.5251,4228.9,4228.8,1.30821]
[1754849343176,1.5251,4228.9,4228.8,1.58361]
[1754849344383,1.5251,4228.9,4228.8,1.74981]
[1754849344776,0.263,4228.9,4228.8,2.60586444]
[1754849345969,0.8907,4230.0,4229.9,0.6267]
[1754849346170,1.5647,4230.0,4229.9,1.75729]
[1754849346472,0.4435,4230.0,4229.9,1.75729]
[1754849346672,1.5647,4230.0,4229.9,1.75729]
[1754849350070,1.5647,4230.0,4229.9,0.4459]
[1754849350071,0.1746,4230.0,4229.9,0.4459]
[1754849350275,1.2958,4230.0,4229.9,1.2845]
[1754849350480,1.2958,4230.0,4229.9,1.75729]
[1754849350882,1.5647,4230.0,4229.9,1.75729]
[1754849351482,1.5647,4230.6,4230.5,0.47272]
[1754849351781,1.5647,4230.5,4230.4,0.47273]
[1754849352684,1.5647,4230.5,4230.4,1.59073]
[1754849352884,1.5647,4230.5,4230.4,1.75723]
[1754849365993,1.70160976,4231.5,4231.1,0.47266]
[1754849365994,0.2689,4231.2,4231.1,0.47266]
[1754849366195,0.2689,4231.2,4230.5,1.09942]
[1754849366196,0.1746,4230.6,4230.5,1.09942]
[1754849366497,0.4435,4230.6,4230.5,1.75722]
[1754849366690,1.1175,4230.6,4230.5,1.75722]
[1754849366891,1.5647,4230.6,4230.5,1.75722]
[1754849367498,1.2958,4231.2,4231.1,1.31906]
[1754849367698,1.2958,4231.2,4231.1,1.75716]
[1754849367992,1.5647,4231.2,4231.1,1.75716]
[1754849371694,0.4435,4231.2,4231.1,1.75716]
[1754849371898,0.4435,4231.2,4231.1,1.86116]
[1754849372299,0.2689,4231.2,4231.1,1.86116]
[1754849373191,0.4435,4231.2,4231.1,1.86116]
[1754849373594,1.774,4231.5,4231.1,1.86116]
[1754849373595,1.1,4231.5,4231.4,1.86112]
[1754849373894,1.1,4231.5,4231.4,2.61337444]
[1754849374195,0.2621,4231.5,4231.4,2.61337444]
[1754849374701,0.2621,4231.5,4231.4,8.61337444]
[1754849375298,0.60257904,4233.4,4231.4,8.61337444]
[1754849375299,1.1695,4232.7,4232.6,1.09139]
[1754849375993,1.1143,4232.7,4232.6,1.09139]
[1754849376195,0.6795,4233.1,4232.1,1.18136]
[1754849376401,0.8663,4232.8,4232.7,0.3372]
[1754849376601,0.8663,4232.8,4232.7,0.5919]
[1754849376795,0.2566,4232.7,4231.2,0.75225444]
[1754849377000,1.5458,4232.2,4232.1,0.89914]
[1754849377390,1.5458,4232.2,4232.1,1.06444]
[1754849377797,0.4372,4232.7,4232.6,0.47249]
[1754849377991,1.5458,4232.7,4232.6,1.06439]
[1754849379799,1.5458,4232.7,4232.0,0.75225444]
[1754849379800,0.4383,4232.1,4232.0,0.64446]
[1754849379996,1.5458,4232.1,4232.0,0.89916]
[1754849380397,0.1714,4231.8,4231.7,0.47259]
[1754849380699,1.5458,4231.8,4231.7,0.47259]
[1754849381408,1.18124,4232.6,4231.4,0.89922]
[1754849381409,1.5458,4231.5,4231.4,0.89922]
[1754849381697,1.5458,4232.1,4232.0,0.64445]
[1754849381903,1.5458,4232.1,4232.0,0.89915]
[1754849383393,0.7077,4232.1,4232.0,1.06445]
[1754849383600,0.2705,4232.1,4232.0,1.06445]
[1754849383903,0.7077,4232.4,4232.3,0.5919]
[1754849384105,1.1167,4232.4,4232.3,0.5919]
[1754849384305,1.2892,4232.4,4232.3,1.06442]
[1754849385009,1.5458,4232.4,4232.3,1.06442]
[1754849386600,0.7077,4232.4,4232.3,1.06442]
[1754849386801,1.1167,4232.4,4232.3,1.06442]
[1754849387300,1.5458,4232.4,4232.3,1.06442]
[1754849387703,1.5458,4232.4,4232.3,0.47252]
[1754849388097,1.5458,4232.4,4232.3,0.89912]
[1754849388712,1.5458,4232.4,4232.3,0.4266]
[1754849389010,0.6097,4232.4,4232.2,0.47253]
[1754849389210,1.5458,4232.3,4232.2,0.47253]
[1754849389406,1.5458,4232.1,4232.0,0.47255]
[1754849389610,1.5458,4232.1,4232.0,0.89915]
[1754849389813,0.2705,4232.1,4232.0,1.06445]
[1754849390008,1.1167,4232.1,4232.0,1.06445]
[1754849390605,0.2705,4232.1,4232.0,1.06445]
[1754849390813,0.2705,4232.1,4232.0,1.16775]
[1754849391008,1.0187,4232.6,4232.5,0.8097]
[1754849391207,1.0187,4232.6,4232.5,1.0644]
[1754849391509,0.7077,4232.6,4232.5,1.0644]
[1754849391711,1.5458,4232.6,4232.5,0.8991]
[1754849396814,1.5458,4232.6,4232.5,1.0644]
[1754849397212,1.2892,4232.6,4232.5,1.0644]
[1754849398411,1.5458,4232.6,4232.5,1.0644]
[1754849399413,1.2892,4232.6,4232.5,1.0644]
[1754849399720,1.1167,4232.6,4232.5,1.1677]
[1754849400614,1.1167,4232.6,4232.5,1.0644]
[1754849400815,0.2705,4232.6,4232.5,1.0644]
[1754849401319,1.5458,4232.6,4232.5,1.0644]
[1754849403511,0.6097,4232.6,4232.4,0.47251]
[1754849403711,1.5458,4232.0,4231.9,0.4266]
[1754849404020,1.5458,4232.0,4231.9,0.5919]
[1754849405322,1.5458,4232.0,4231.9,0.1719]
[1754849405820,1.5458,4232.0,4231.9,0.4482]
[1754849406120,1.5458,4232.0,4231.9,0.6128]
[1754849408719,1.5458,4232.0,4231.9,0.4482]
[1754849409224,1.5458,4232.0,4231.9,0.1719]
[1754849410621,0.6097,4232.0,4231.8,0.47258]
[1754849410827,1.5355,4231.8,4231.7,0.47258]
[1754849414527,1.5355,4231.8,4231.7,0.74888]
[1754849415126,1.5355,4231.8,4231.7,0.92248]
[1754849417326,1.5355,4231.8,4231.7,1.08708]
[1754849423832,0.7175,4231.8,4231.7,1.08708]
[1754849424040,1.1004,4232.3,4232.2,1.08783]
[1754849424238,1.353,4232.3,4232.2,1.08783]
[1754849424930,0.2652,4232.3,4232.2,1.19123]
[1754849425528,1.1004,4232.3,4232.2,1.08783]
[1754849425732,1.353,4232.3,4232.2,1.08783]
[1754849426332,1.2829,4232.3,4232.2,0.47253]
[1754849426535,1.5355,4232.3,4232.2,0.47253]
[1754849426736,1.5355,4232.3,4232.2,0.92243]
[1754849426931,1.5355,4232.3,4232.2,1.08783]
[1754849432441,1.5355,4232.3,4232.2,0.47253]
[1754849434640,0.47249,4232.7,4231.6,21.528]
[1754849434641,0.5178,4232.2,4232.1,0.47254]
[1754849434840,1.5355,4232.2,4232.1,0.47254]
[1754849435436,0.6303,4231.5,4231.4,0.3398]
[1754849435639,1.5598,4231.5,4231.4,1.06752]
[1754849438446,1.5598,4231.5,4231.4,22.59552]
[1754849438846,1.5598,4231.5,4231.4,1.06752]
[1754849439048,1.5598,4231.5,4231.4,22.59552]
[1754849441449,0.6303,4231.7,4231.6,0.5949]
[1754849441655,1.5598,4231.7,4231.6,1.0675]
[1754849443056,0.2564,4231.7,4231.6,1.0675]
[1754849443250,1.5598,4232.3,4232.2,1.06743]
[1754849443447,0.8867,4232.3,4232.2,1.06743]
[1754849443651,0.2564,4232.3,4232.2,1.17023]
[1754849444858,1.1151,4232.3,4232.2,1.06743]
[1754849445060,1.5598,4232.3,4232.2,22.59543]
[1754849446453,0.8867,4232.9,4232.8,0.47246]
[1754849446762,1.5598,4232.9,4232.8,0.90286]
[1754849448062,1.5598,4232.9,4232.8,1.06736]
[1754849449558,1.5598,4232.9,4232.8,0.90286]
[1754849449762,1.5598,4232.9,4232.8,1.06736]
[1754849451059,1.5598,4232.9,4232.8,0.90286]
[1754849453661,1.5598,4232.9,4232.8,0.47246]
[1754849454166,1.5598,4232.6,4232.5,0.47249]
[1754849455455,0.5225,4232.6,4232.5,0.64779]
[1754849455654,1.1227,4233.6,4233.5,0.47237]
[1754849455862,1.64978884,4234.2,4234.1,0.64762]
[1754849456162,0.8587,4234.6,4234.5,0.64756]
[1754849456366,1.1,4235.5,4234.4,0.47228]
[1754849456367,1.5598,4234.5,4234.4,0.47228]
[1754849457866,1.5598,4234.5,4234.4,0.90268]
[1754849458569,1.5598,4234.5,4234.4,0.64758]
[1754849458758,1.5598,4234.5,4234.4,0.47228]
[1754849460674,1.5598,4234.5,4234.4,0.64758]
[1754849461167,1.57055769,4234.5,4234.4,0.64758]
[1754849462570,1.57055769,4234.5,4234.4,0.47228]
[1754849464161,1.5598,4234.5,4234.4,0.47228]
[1754849464367,1.58127421,4234.5,4234.4,0.47228]
[1754849466867,2.05354421,4234.5,4234.4,0.47228]
[1754849467071,1.58127421,4234.5,4234.4,0.47228]
[1754849468271,1.58127421,4234.5,4234.4,0.92268]
[1754849469974,1.58127421,4234.5,4234.4,0.65008]
[1754849470674,1.58127421,4234.5,4234.4,0.92268]
[1754849473578,1.58127421,4234.5,4234.4,1.08748]
[1754849478178,1.3685,4234.0,4233.9,0.47234]
[1754849478371,1.56317421,4234.0,4233.9,0.92274]
[1754849478575,1.56317421,4234.0,4233.6,0.47237]
[1754849478576,0.6049,4233.7,4233.6,0.47237]
[1754849478878,1.5417,4233.7,4233.6,0.47237]
[1754849479382,1.5417,4233.7,4233.6,0.92277]
[1754849479383,1.56317421,4233.7,4233.6,0.92277]
[1754849479677,1.56317421,4233.7,4233.6,0.74497]
[1754849479878,1.56317421,4233.7,4233.0,1.08764]
[1754849479879,1.5417,4233.1,4233.0,1.08764]
[1754849480085,1.2779,4233.1,4233.0,1.08764]
[1754849480275,1.56755953,4233.1,4233.0,1.08764]
[1754849481284,1.30375953,4233.1,4233.0,1.08764]
[1754849481584,1.56755953,4233.1,4233.0,1.08764]
[1754849482084,1.30375953,4233.1,4233.0,1.08764]
[1754849482280,0.72985953,4233.1,4233.0,1.19064]
[1754849482477,1.30375953,4233.1,4233.0,1.08764]
[1754849482676,1.56755953,4233.1,4233.0,1.08764]
[1754849487177,1.30375953,4233.1,4233.0,1.08764]
[1754849487481,1.13055953,4233.1,4233.0,1.19064]
[1754849488384,0.02585953,4233.1,4233.0,1.08764]
[1754849488683,0.2723,4233.8,4233.7,0.77356]
[1754849488988,0.2723,4233.8,4233.7,1.04616]
[1754849488989,1.5417,4233.8,4233.7,1.04616]
[1754849491681,0.2723,4233.8,4233.7,1.04616]
[1754849491882,0.60175548,4234.7,4233.7,1.04616]
[1754849491883,1.2694,4234.6,4234.5,0.65007]
[1754849492186,1.2694,4234.6,4234.5,0.92267]
[1754849492388,1.5417,4234.6,4234.5,0.92267]
[1754849493080,1.5417,4234.6,4234.5,0.65007]
[1754849493282,1.5417,4234.6,4234.5,0.47227]
[1754849493479,0.4723,4234.3,4234.2,0.2726]
[1754849493681,0.7093,4233.7,4233.6,0.5732]
[1754849493889,1.5417,4233.7,4233.6,1.04557]
[1754849494792,0.2723,4233.7,4233.6,1.12237]
[1754849498597,0.4441,4233.7,4233.6,1.04557]
[1754849499898,1.553,4233.7,4233.6,1.04557]
[1754849500398,1.553,4233.7,4233.6,0.47237]
[1754849500696,1.55709309,4233.7,4233.6,0.47237]
[1754849501290,1.29229309,4233.7,4233.6,1.02357]
[1754849501595,0.27639309,4233.7,4233.6,1.10077]
[1754849502686,0.45879309,4233.7,4233.6,1.10077]
[1754849502890,1.56769309,4233.7,4233.6,1.02357]
[1754849503797,1.30289309,4233.7,4233.6,1.02357]
[1754849505395,1.56769309,4233.7,4233.6,1.02357]
[1754849506798,0.27639309,4233.7,4233.6,1.02357]
[1754849506988,0.27639309,4233.7,4233.6,1.10077]
[1754849507799,1.12599309,4233.7,4233.6,1.02357]
[1754849508398,1.39079309,4233.7,4233.6,1.02357]
[1754849509897,1.12599309,4233.7,4233.6,1.02357]
[1754849510397,1.39079309,4233.7,4233.6,1.02357]
[1754849510594,1.56769309,4233.7,4233.6,1.02357]
[1754849510791,0.00409309,4233.7,4233.6,1.02357]
[1754849510992,0.4418,4234.4,4234.3,0.5957]
[1754849511196,1.5507,4234.4,4234.3,1.0235]
[1754849511998,1.5507,4234.4,4234.3,0.6447]
[1754849512695,1.5507,4234.4,4234.3,1.0235]
[1754849513494,1.5507,4234.4,4234.3,0.9001]
[1754849517597,1.5507,4234.4,4234.3,1.0235]
[1754849517792,0.2594,4234.4,4234.3,1.0235]
[1754849517996,1.5507,4234.4,4234.3,1.0235]
[1754849518200,1.5507,4234.4,4234.3,0.9001]
[1754849518402,1.5507,4234.4,4234.3,1.0235]
[1754849519706,1.109,4234.4,4234.3,1.0235]
[1754849519895,0.8865,4234.4,4234.3,1.0235]
[1754849520099,1.5507,4234.4,4234.3,1.0235]
[1754849521297,0.7096,4234.4,4234.3,1.0235]
[1754849521505,1.109,4234.4,4234.3,1.0235]
[1754849521803,1.3738,4234.4,4234.3,1.0235]
[1754849522105,1.5507,4234.4,4234.3,1.0235]
[1754849523706,1.70197433,4235.5,4234.3,1.0235]
[1754849523707,1.5507,4235.1,4235.0,0.90001]
[1754849523899,0.9236,4235.0,4234.9,0.47222]
[1754849524094,1.5507,4235.0,4234.9,0.47222]
[1754849524295,1.5507,4235.0,4234.9,0.90002]
[1754849524706,1.5507,4235.0,4234.9,0.64462]
[1754849525010,1.5507,4235.0,4234.9,0.47222]
[1754849526905,1.5507,4235.0,4234.9,0.64462]
[1754849527208,1.5507,4235.0,4234.9,1.02792]
[1754849527601,1.5507,4235.0,4234.9,0.90432]
[1754849528809,1.2859,4235.0,4234.9,0.47222]
[1754849529009,1.2859,4235.0,4234.9,1.02812]
[1754849529010,1.3455,4235.0,4234.9,1.02812]
[1754849529203,1.5278,4235.0,4234.9,1.02812]
[1754849533516,2.18847,4235.5,4235.4,0.1726]
[1754849533814,1.0077,4235.3,4235.2,0.90449]
[1754849534213,1.5208,4235.3,4235.2,0.90449]
[1754849535419,1.5208,4235.3,4235.2,0.47219]
[1754849539619,1.5208,4235.3,4235.2,0.73189]
[1754849543030,1.5208,4235.3,4235.2,0.90449]
[1754849543432,1.5208,4234.3,4234.2,1.02821]
[1754849543724,1.5208,4234.3,4234.2,0.47231]
[1754849543925,1.5208,4234.3,4234.2,0.90461]
[1754849544927,1.5208,4234.3,4234.2,1.02821]
[1754849546826,0.2524,4235.0,4234.2,0.2597]
[1754849547027,0.2524,4235.0,4234.9,0.5559]
[1754849547028,1.3385,4235.0,4234.9,0.5559]
[1754849547230,1.5208,4235.0,4234.9,0.5559]
[1754849547932,1.5208,4235.0,4234.9,1.02813]
[1754849549525,1.0778,4235.0,4234.9,1.10533]
[1754849550127,1.5208,4235.0,4234.9,1.02813]
[1754849555934,1.5474,4235.5,4235.4,0.47217]
[1754849556134,1.5527,4235.5,4235.4,1.03417]
[1754849556335,2.1979,4235.5,4235.4,1.03417]
[1754849556537,2.6374,4235.5,4235.4,1.03417]
[1754849559446,2.6374,4235.5,4235.4,0.91067]
[1754849559841,2.6374,4235.5,4235.4,1.03417]
[1754849561348,2.6374,4235.5,4235.4,0.47217]
[1754849561747,2.6374,4235.5,4235.4,0.73357]
[1754849561938,2.6374,4235.5,4235.4,0.91067]
[1754849563647,2.6374,4235.5,4235.4,1.03417]
[1754849564338,2.6374,4235.5,4235.4,0.91067]
[1754849565346,0.2679,4235.3,4234.6,0.2614]
[1754849565651,1.5374,4235.3,4235.2,0.47219]
[1754849566045,1.5374,4235.3,4235.2,0.91069]
[1754849566246,0.2679,4235.3,4235.2,1.03379]
[1754849566749,0.2679,4235.3,4235.2,1.11079]
[1754849567145,1.1,4235.5,4235.4,0.47217]
[1754849567350,1.1,4235.5,4235.4,1.11077]
[1754849568442,0.43121,4235.5,4235.4,1.11077]
[1754849568854,0.69911,4235.5,4235.4,1.11077]
[1754849569852,0.69911,4235.5,4235.4,1.03377]
[1754849569853,1.32241,4235.5,4235.4,1.03377]
[1754849570151,1.96861,4235.5,4235.4,1.03377]